{"text_format":"1","workbook":"xlsx","n_sheets":3,"sheets":["Approved Div Splits","Approved RO - Colour","Approved RO - B&W"],"not_rendered":{"charts":0,"images":0,"macros":0,"external_links":0,"defined_names":0,"comments":0,"pivot_tables":0},"unopened":[],"bounds":{"document_bytes":16777216,"sheet_cells":100000,"rows_first":2000,"rows_last":500,"rows_between":2000,"halvings":0,"cell_chars":16384,"cell_head_chars":4096},"cells_cut":0,"cells_raw":0,"read":"whole","date_system":"1900"}

{"sheet":"Approved Div Splits","index":0,"n_rows":19,"n_cols":16,"rows_kept":19,"cut":false,"hidden":false,"merged":[[0,0,0,5],[0,7,0,15]]}
["Reigning Dogs & Balls Division Splits",null,null,null,null,null,null,"RACING FORMAT"]
["TEAM NAME","SEED TIME","TEAM GAP","DIVISION","WEB or DEC","BREAK OUT",null,"DIVISION","NUMBER\nTEAMS","DIVISIONAL GAP","DIVISIONAL SPREAD","HANDICAP/ NON-HANDICAP ","RACE FORMAT","NUMBER\n RR","RACES PER\nTEAM","RACES PER DIVISION"]
["Norwest Thunderdogs 1",15.987,null,1,"WEB",{"$f":"B3-1","v":14.987},null,1,3,null,2.7129999999999992,"HANDICAP","Best of 5",3,6,9]
["Norwest Thunderdogs 3",18,{"$f":"IF(B4=\"\",\"\",B4-B3)","v":2.0129999999999999},1,"DEC",17,null,2,4,0.60000000000000142,0.46300000000000097,"NON-HANDICAP","Best of 5",2,6,12]
["Unleashed Power",18.7,{"$f":"IF(B5=\"\",\"\",B5-B4)","v":0.69999999999999929},1,"DEC",17.7,null,3,3,1.7369999999999983,0.38100000000000023,"NON-HANDICAP","Best of 5",3,6,9]
["Primed Up Woofers",19.3,0.60000000000000142,2,"DEC",18.3,null,4,3,1.7190000000000012,4.3999999999999986,"HANDICAP","Best of 5",3,6,9]
["Unleashed Speed",19.538,0.23799999999999955,2,"WEB",18.3,null,"O1",4,null,2.5,"HANDICAP","Best of 5",2,6,12]
["Norwest Thunderdogs 4",19.547999999999998,9.9999999999980105E-3,2,"WEB",18.3]
["Barking MAD",19.763000000000002,0.21500000000000341,2,"WEB",18.3]
["Norwest Thunderdogs 8",21.5,1.7369999999999983,3,"DEC",20.5]
["Pawpedoes",21.873999999999999,0.37399999999999878,3,"WEB",20.5]
["Norwest Thunderdogs 5",21.881,7.0000000000014495E-3,3,"WEB",20.5]
["MAD Dash",23.6,1.7190000000000012,4,"DEC",22.6]
["Norwest Thunderdogs 6",24,0.39999999999999858,4,"DEC",23]
["Wooftimus Prime",28,4,4,"DEC",27]
["Canberra X-traordinary",19.5,-8.5,"O1","DEC",18.5]
["Crate Escapers",20.3,0.80000000000000071,"O1","DEC",19.3]
["Zoomies",21.5,1.1999999999999993,"O1","DEC",20.5]
["Maximum Mayhem",22,0.5,"O1","DEC",21]

{"sheet":"Approved RO - Colour","index":1,"n_rows":53,"n_cols":5,"rows_kept":53,"cut":false,"hidden":false,"merged":[[0,0,0,4]]}
["Reigning Dogs & Balls Running Order"]
["Race no","Division","Handicap","Left","Right"]
[1,1,"Handicap ","Unleashed Power","Norwest Thunderdogs 1"]
[2,4,"Handicap ","Wooftimus Prime","MAD Dash"]
[3,3,"Non-Handicap","Norwest Thunderdogs 5","Norwest Thunderdogs 8"]
[4,2,"Non-Handicap","Unleashed Speed","Norwest Thunderdogs 4"]
[5,2,"Non-Handicap","Barking MAD","Primed Up Woofers"]
[6,"O1","Handicap ","Maximum Mayhem","Canberra X-traordinary"]
[7,1,"Handicap ","Norwest Thunderdogs 3","Unleashed Power"]
[8,"O1","Handicap ","Crate Escapers","Zoomies"]
[9,4,"Handicap ","Norwest Thunderdogs 6","Wooftimus Prime"]
[10,3,"Non-Handicap","Norwest Thunderdogs 5","Pawpedoes"]
[11,2,"Non-Handicap","Primed Up Woofers","Unleashed Speed"]
[12,2,"Non-Handicap","Norwest Thunderdogs 4","Barking MAD"]
[13,1,"Handicap ","Norwest Thunderdogs 1","Norwest Thunderdogs 3"]
[14,4,"Handicap ","MAD Dash","Norwest Thunderdogs 6"]
[15,"O1","Handicap ","Maximum Mayhem","Crate Escapers"]
[16,3,"Non-Handicap","Pawpedoes","Norwest Thunderdogs 8"]
[17,2,"Non-Handicap","Primed Up Woofers","Norwest Thunderdogs 4"]
[18,2,"Non-Handicap","Barking MAD","Unleashed Speed"]
[19,"O1","Handicap ","Canberra X-traordinary","Zoomies"]
[20,4,"Handicap ","MAD Dash","Wooftimus Prime"]
[21,1,"Handicap ","Unleashed Power","Norwest Thunderdogs 1"]
[22,3,"Non-Handicap","Pawpedoes","Norwest Thunderdogs 5"]
[23,2,"Non-Handicap","Primed Up Woofers","Barking MAD"]
[24,2,"Non-Handicap","Norwest Thunderdogs 4","Unleashed Speed"]
[25,"O1","Handicap ","Zoomies","Maximum Mayhem"]
[26,"O1","Handicap ","Canberra X-traordinary","Crate Escapers"]
[27,1,"Handicap ","Unleashed Power","Norwest Thunderdogs 3"]
[28,4,"Handicap ","Wooftimus Prime","Norwest Thunderdogs 6"]
[29,3,"Non-Handicap","Norwest Thunderdogs 8","Norwest Thunderdogs 5"]
[30,2,"Non-Handicap","Unleashed Speed","Barking MAD"]
[31,"O1","Handicap ","Canberra X-traordinary","Maximum Mayhem"]
[32,1,"Handicap ","Norwest Thunderdogs 3","Norwest Thunderdogs 1"]
[33,"O1","Handicap ","Zoomies","Crate Escapers"]
[34,4,"Handicap ","Norwest Thunderdogs 6","MAD Dash"]
[35,3,"Non-Handicap","Norwest Thunderdogs 8","Pawpedoes"]
[36,2,"Non-Handicap","Norwest Thunderdogs 4","Primed Up Woofers"]
[37,1,"Handicap ","Norwest Thunderdogs 1","Unleashed Power"]
[38,"O1","Handicap ","Zoomies","Canberra X-traordinary"]
[39,4,"Handicap ","Wooftimus Prime","MAD Dash"]
[40,3,"Non-Handicap","Norwest Thunderdogs 5","Norwest Thunderdogs 8"]
[41,2,"Non-Handicap","Barking MAD","Norwest Thunderdogs 4"]
[42,"O1","Handicap ","Crate Escapers","Maximum Mayhem"]
[43,4,"Handicap ","Norwest Thunderdogs 6","Wooftimus Prime"]
[44,1,"Handicap ","Norwest Thunderdogs 1","Norwest Thunderdogs 3"]
[45,2,"Non-Handicap","Unleashed Speed","Primed Up Woofers"]
[46,3,"Non-Handicap","Norwest Thunderdogs 8","Pawpedoes"]
[47,"O1","Handicap ","Maximum Mayhem","Zoomies"]
[48,"O1","Handicap ","Crate Escapers","Canberra X-traordinary"]
[49,1,"Handicap ","Norwest Thunderdogs 3","Unleashed Power"]
[50,4,"Handicap ","MAD Dash","Norwest Thunderdogs 6"]
[51,3,"Non-Handicap","Pawpedoes","Norwest Thunderdogs 5"]

{"sheet":"Approved RO - B&W","index":2,"n_rows":53,"n_cols":5,"rows_kept":53,"cut":false,"hidden":false,"merged":[[0,0,0,4]]}
["Reigning Dogs & Balls Running Order"]
["Race no","Division","Handicap","Left","Right"]
[1,1,"Handicap ","Unleashed Power","Norwest Thunderdogs 1"]
[2,4,"Handicap ","Wooftimus Prime","MAD Dash"]
[3,3,"Non-Handicap","Norwest Thunderdogs 5","Norwest Thunderdogs 8"]
[4,2,"Non-Handicap","Unleashed Speed","Norwest Thunderdogs 4"]
[5,2,"Non-Handicap","Barking MAD","Primed Up Woofers"]
[6,"O1","Handicap ","Maximum Mayhem","Canberra X-traordinary"]
[7,1,"Handicap ","Norwest Thunderdogs 3","Unleashed Power"]
[8,"O1","Handicap ","Crate Escapers","Zoomies"]
[9,4,"Handicap ","Norwest Thunderdogs 6","Wooftimus Prime"]
[10,3,"Non-Handicap","Norwest Thunderdogs 5","Pawpedoes"]
[11,2,"Non-Handicap","Primed Up Woofers","Unleashed Speed"]
[12,2,"Non-Handicap","Norwest Thunderdogs 4","Barking MAD"]
[13,1,"Handicap ","Norwest Thunderdogs 1","Norwest Thunderdogs 3"]
[14,4,"Handicap ","MAD Dash","Norwest Thunderdogs 6"]
[15,"O1","Handicap ","Maximum Mayhem","Crate Escapers"]
[16,3,"Non-Handicap","Pawpedoes","Norwest Thunderdogs 8"]
[17,2,"Non-Handicap","Primed Up Woofers","Norwest Thunderdogs 4"]
[18,2,"Non-Handicap","Barking MAD","Unleashed Speed"]
[19,"O1","Handicap ","Canberra X-traordinary","Zoomies"]
[20,4,"Handicap ","MAD Dash","Wooftimus Prime"]
[21,1,"Handicap ","Unleashed Power","Norwest Thunderdogs 1"]
[22,3,"Non-Handicap","Pawpedoes","Norwest Thunderdogs 5"]
[23,2,"Non-Handicap","Primed Up Woofers","Barking MAD"]
[24,2,"Non-Handicap","Norwest Thunderdogs 4","Unleashed Speed"]
[25,"O1","Handicap ","Zoomies","Maximum Mayhem"]
[26,"O1","Handicap ","Canberra X-traordinary","Crate Escapers"]
[27,1,"Handicap ","Unleashed Power","Norwest Thunderdogs 3"]
[28,4,"Handicap ","Wooftimus Prime","Norwest Thunderdogs 6"]
[29,3,"Non-Handicap","Norwest Thunderdogs 8","Norwest Thunderdogs 5"]
[30,2,"Non-Handicap","Unleashed Speed","Barking MAD"]
[31,"O1","Handicap ","Canberra X-traordinary","Maximum Mayhem"]
[32,1,"Handicap ","Norwest Thunderdogs 3","Norwest Thunderdogs 1"]
[33,"O1","Handicap ","Zoomies","Crate Escapers"]
[34,4,"Handicap ","Norwest Thunderdogs 6","MAD Dash"]
[35,3,"Non-Handicap","Norwest Thunderdogs 8","Pawpedoes"]
[36,2,"Non-Handicap","Norwest Thunderdogs 4","Primed Up Woofers"]
[37,1,"Handicap ","Norwest Thunderdogs 1","Unleashed Power"]
[38,"O1","Handicap ","Zoomies","Canberra X-traordinary"]
[39,4,"Handicap ","Wooftimus Prime","MAD Dash"]
[40,3,"Non-Handicap","Norwest Thunderdogs 5","Norwest Thunderdogs 8"]
[41,2,"Non-Handicap","Barking MAD","Norwest Thunderdogs 4"]
[42,"O1","Handicap ","Crate Escapers","Maximum Mayhem"]
[43,4,"Handicap ","Norwest Thunderdogs 6","Wooftimus Prime"]
[44,1,"Handicap ","Norwest Thunderdogs 1","Norwest Thunderdogs 3"]
[45,2,"Non-Handicap","Unleashed Speed","Primed Up Woofers"]
[46,3,"Non-Handicap","Norwest Thunderdogs 8","Pawpedoes"]
[47,"O1","Handicap ","Maximum Mayhem","Zoomies"]
[48,"O1","Handicap ","Crate Escapers","Canberra X-traordinary"]
[49,1,"Handicap ","Norwest Thunderdogs 3","Unleashed Power"]
[50,4,"Handicap ","MAD Dash","Norwest Thunderdogs 6"]
[51,3,"Non-Handicap","Pawpedoes","Norwest Thunderdogs 5"]